bitfinex/quotes_SOLUSD_20241111
["timestamp","ask_amount","ask_price","bid_price","bid_amount"]
[1731347714776,15.1882,220.06,219.88,28.12687789]
[1731347715681,15.1882,220.06,219.89,23.776884]
[1731347716265,15.1882,220.06,219.92,28.12687789]
[1731347716668,15.1882,220.06,219.9,28.12687789]
[1731347716978,15.1882,220.06,219.91,23.776884]
[1731347717172,6.2239,220.05,219.88,28.12687789]
[1731347718276,16.0362,220.02,219.8,70.0]
[1731347718479,6.0396,220.01,219.8,70.0]
[1731347718683,6.0396,220.01,219.86,28.12687789]
[1731347720160,6.1396,220.01,219.84,28.12687789]
[1731347720360,0.1,219.99,219.84,28.12687789]
[1731347720573,6.144,219.95,219.79,28.12687789]
[1731347720785,6.144,219.95,219.81,28.12687789]
[1731347720965,6.144,219.95,219.85,28.12687789]
[1731347721470,6.144,219.95,219.9,28.12687789]
[1731347722085,6.144,219.95,219.88,28.12687789]
[1731347722984,6.144,219.95,219.86,28.12687789]
[1731347723389,6.144,219.95,219.84,28.12687789]
[1731347723579,6.144,219.95,219.86,28.12687789]
[1731347724179,0.1,219.94,219.77,8.12506928]
[1731347724386,6.6361,219.91,219.83,28.12687789]
[1731347726890,15.678,219.9,219.78,23.776884]
[1731347727073,15.678,219.9,219.83,28.12687789]
[1731347727273,15.678,219.9,219.78,23.776884]
[1731347727274,15.678,219.9,219.86,28.12687789]
[1731347728393,15.678,219.9,219.85,28.12687789]
[1731347729276,15.678,219.9,219.87,28.12687789]
[1731347729674,15.678,219.9,219.78,23.776884]
[1731347729899,15.678,219.9,219.86,28.12687789]
[1731347730372,15.678,219.9,219.78,23.776884]
[1731347730572,15.678,219.9,219.88,28.12687789]
[1731347730974,15.678,219.9,219.78,23.776884]
[1731347731169,15.678,219.9,219.89,28.12687789]
[1731347733093,15.678,219.9,219.78,23.776884]
[1731347733291,15.678,219.9,219.88,28.12687789]
[1731347734379,15.678,219.9,219.89,28.12687789]
[1731347737283,15.678,219.9,219.89,51.90376189]
[1731347738893,15.678,219.9,219.89,28.12687789]
[1731347741907,15.678,219.9,219.77,10.15072166]
[1731347742117,15.678,219.9,219.89,28.12687789]
[1731347747494,15.678,219.9,219.87,28.12687789]
[1731347749511,15.678,219.9,219.89,28.12687789]
[1731347752910,15.678,219.9,219.87,28.12687789]
[1731347755188,0.1,219.86,219.85,28.12687789]
[1731347755507,0.1,219.86,219.72,28.12687789]
[1731347755508,0.1,219.86,219.81,28.12687789]
[1731347757190,0.1,219.88,219.81,28.12687789]
[1731347757503,0.1,219.88,219.83,28.12687789]
[1731347757697,15.678,219.9,219.85,28.12687789]
[1731347758212,15.678,219.9,219.87,28.12687789]
[1731347758404,3.38114142,219.89,219.87,28.12687789]
[1731347758612,15.678,219.9,219.87,28.12687789]
[1731347758813,3.38074831,219.89,219.87,28.12687789]
[1731347759012,3.38074831,219.88,219.87,28.12687789]
[1731347760815,15.678,219.9,219.87,28.12687789]
[1731347761004,15.678,219.9,219.89,28.12687789]
[1731347761197,19.06066054,219.9,219.89,28.12687789]
[1731347761513,19.06152465,219.9,219.89,28.12687789]
[1731347762914,3.38352465,219.9,219.89,28.12687789]
[1731347763120,3.38352465,219.9,219.89,51.90376189]
[1731347763617,3.38352465,219.9,219.89,28.12687789]
[1731347764116,3.38352465,219.9,219.89,51.90376189]
[1731347766199,3.38352465,219.9,219.89,28.12687789]
[1731347768124,3.38352465,219.9,219.85,28.12687789]
[1731347768305,6.6664,219.88,219.83,28.12687789]
[1731347768632,3.38352465,219.87,219.83,28.12687789]
[1731347768927,3.38352465,219.86,219.83,28.12687789]
[1731347769222,3.38352465,219.85,219.83,28.12687789]
[1731347769523,3.38352465,219.84,219.83,28.12687789]
[1731347769907,3.38352465,219.87,219.83,28.12687789]
[1731347770112,3.38352465,219.86,219.83,28.12687789]
[1731347770430,3.38352465,219.85,219.72,30.14281118]
[1731347770615,3.38352465,219.84,219.73,43.776884]
[1731347770931,3.38352465,219.83,219.73,43.776884]
[1731347771105,3.38352465,219.82,219.73,43.776884]
[1731347771306,6.6664,219.88,219.73,43.776884]
[1731347771524,6.6664,219.88,219.87,28.12687789]
[1731347771726,10.05414126,219.88,219.87,28.12687789]
[1731347775223,10.05414126,219.88,219.85,28.12687789]
[1731347775423,0.1,219.86,219.73,23.776884]
[1731347775615,0.1,219.82,219.73,23.776884]
[1731347775821,0.1,219.82,219.61,16.5598]
[1731347775822,6.3787,219.79,219.61,16.5598]
[1731347776129,3.48774126,219.78,219.72,28.12687789]
[1731347776308,3.38774126,219.77,219.72,28.12687789]
[1731347776510,3.38774126,219.76,219.7,28.12687789]
[1731347776712,3.38774126,219.75,219.72,28.12687789]
[1731347777013,3.38709832,219.74,219.61,16.6598]
[1731347777207,6.3787,219.79,219.73,28.12687789]
[1731347777412,3.3835585,219.78,219.77,28.12687789]
[1731347778424,7.1687,219.84,219.77,28.12687789]
[1731347778628,7.1687,219.84,219.83,28.12687789]
[1731347781040,6.3787,219.84,219.83,28.12687789]
[1731347784615,6.3787,219.84,219.83,23.12687789]
[1731347784822,6.3787,219.84,219.83,28.12687789]
[1731347786523,6.4256,219.89,219.83,56.25375578]
[1731347786730,6.4256,219.89,219.88,28.12687789]
[1731347787616,6.4256,219.89,219.77,16.0004]
[1731347787838,6.4256,219.89,219.85,28.12687789]
[1731347788921,6.4256,219.89,219.87,28.12687789]
[1731347790519,3.38421147,219.88,219.87,28.12687789]
[1731347792220,6.0242,219.95,219.87,28.12687789]
[1731347792439,15.8769,219.98,219.94,28.12687789]
[1731347792642,15.8769,219.98,219.97,28.12687789]
[1731347793320,6.2909,220.01,219.97,28.12687789]
[1731347793520,6.2909,220.01,220.0,28.12687789]
[1731347795440,15.0792,220.04,220.0,28.12687789]
[1731347795649,15.0792,220.04,219.96,28.12687789]
[1731347795650,15.0792,220.04,220.03,28.12687789]
[1731347795832,6.4475,220.06,220.03,28.12687789]
[1731347796029,6.4475,220.06,220.05,28.12687789]
[1731347799841,6.4475,220.06,220.03,28.12687789]
[1731347800628,6.4475,220.06,220.01,28.12687789]
[1731347802939,6.5475,220.06,219.99,28.12687789]
[1731347803128,0.1,220.04,219.89,15.7396]
[1731347803333,0.1,220.0,219.84,2.03007905]
[1731347803538,0.1,220.0,219.92,28.12687789]
[1731347805857,0.1,220.0,219.94,28.12687789]
[1731347806433,0.1,219.96,219.9,28.12687789]
[1731347806856,0.1,219.94,219.88,28.12687789]
[1731347807545,6.5036,219.89,219.71,16.2868]
[1731347807747,6.5036,219.89,219.82,28.12687789]
[1731347808345,6.5036,219.89,219.84,28.12687789]
[1731347810344,6.5036,219.89,219.86,28.12687789]
[1731347810551,6.5036,219.89,219.73,23.776884]
[1731347810749,0.1,219.82,219.62,15.3511]
[1731347811054,0.1,219.82,219.73,28.12687789]
[1731347812067,0.1,219.8,219.73,28.12687789]
[1731347812233,0.1,219.78,219.71,28.12687789]
[1731347812557,0.1,219.78,219.69,28.12687789]
[1731347812855,0.1,219.78,219.71,28.12687789]
[1731347813937,0.1,219.76,219.69,28.12687789]
[1731347814337,15.8935,219.77,219.69,28.12687789]
[1731347815235,0.1,219.73,219.56,16.3321]
[1731347815437,0.1,219.73,219.66,28.12687789]
[1731347816953,0.1,219.73,219.64,28.12687789]
[1731347817369,0.1,219.69,219.51,21.6784]
[1731347817535,0.1,219.67,219.58,28.12687789]
[1731347817738,0.1,219.67,219.51,15.5211]
[1731347817739,0.1,219.67,219.6,28.12687789]
[1731347818057,0.1,219.69,219.6,28.12687789]
[1731347818737,0.1,219.71,219.6,28.12687789]
[1731347818738,0.1,219.67,219.6,28.12687789]
[1731347819360,0.1,219.64,219.57,28.12687789]
[1731347819554,15.5031,219.65,219.57,28.12687789]
[1731347820344,15.5031,219.65,219.59,28.12687789]
[1731347820557,0.78946799,219.57,219.49,23.776884]
[1731347820745,0.78946799,219.57,219.56,51.90376189]
[1731347820949,0.78946799,219.57,219.42,18.29866803]
[1731347821247,0.78946799,219.57,219.55,28.12687789]
[1731347822745,0.78946799,219.57,219.56,28.12687789]
[1731347823259,0.78946799,219.57,219.42,18.29866803]
[1731347823260,0.78946799,219.57,219.54,28.12687789]
[1731347823464,0.78946799,219.57,219.52,28.12687789]
[1731347824058,6.509,219.56,219.52,28.12687789]
[1731347824672,6.509,219.56,219.5,28.12687789]
[1731347827160,6.509,219.56,219.54,28.12687789]
[1731347827343,6.509,219.56,219.52,28.12687789]
[1731347827547,6.509,219.56,219.52,27.62687789]
[1731347828043,6.509,219.56,219.54,28.12687789]
[1731347828976,6.5982,219.62,219.54,28.12687789]
[1731347829170,6.5982,219.62,219.58,28.12687789]
[1731347831246,6.5982,219.62,219.6,28.12687789]
[1731347832271,6.5982,219.62,219.58,28.12687789]
[1731347833162,6.5982,219.62,219.48,28.12687789]
[1731347833163,6.5982,219.62,219.6,28.12687789]
[1731347834548,15.5031,219.64,219.6,28.12687789]
[1731347834754,15.5031,219.65,219.62,28.12687789]
[1731347835557,6.2613,219.67,219.64,28.12687789]
[1731347836045,6.2613,219.67,219.63,28.12687789]
[1731347836558,6.2613,219.67,219.62,28.12687789]
[1731347836855,6.2613,219.67,219.64,28.12687789]
[1731347837169,6.2613,219.67,219.63,28.12687789]
[1731347837556,6.2613,219.67,219.64,28.12687789]
[1731347837968,24.46262,219.67,219.6,28.12687789]
[1731347838158,0.1,219.63,219.49,23.776884]
[1731347838476,21.7016,219.66,219.49,23.776884]
[1731347838477,0.1,219.65,219.54,28.12687789]
[1731347838680,0.1,219.62,219.53,28.12687789]
[1731347838977,0.2,219.64,219.53,28.12687789]
[1731347839352,0.1,219.64,219.55,28.12687789]
[1731347839955,0.1,219.62,219.55,28.12687789]
[1731347840758,0.1,219.62,219.53,28.12687789]
[1731347841469,0.2,219.64,219.53,28.12687789]
[1731347842065,0.1,219.64,219.55,28.12687789]
[1731347842274,21.8016,219.66,219.57,28.12687789]
[1731347842859,21.7016,219.66,219.49,23.776884]
[1731347843057,21.7016,219.66,219.59,28.12687789]
[1731347846856,21.7016,219.66,219.41,0.1]
[1731347847060,0.1,219.64,219.53,28.12687789]
[1731347847261,0.1,219.54,219.31,16.395]
[1731347847571,23.776884,219.62,219.46,28.12687789]
[1731347847572,6.1409,219.53,219.46,28.12687789]
[1731347847971,6.1409,219.53,219.48,28.12687789]
[1731347849586,16.1088,219.56,219.5,28.12687789]
[1731347849779,6.1921,219.58,219.52,28.12687789]
[1731347850088,6.1921,219.58,219.54,28.12687789]
[1731347850263,6.1921,219.58,219.52,28.12687789]
[1731347852981,6.1921,219.58,219.5,28.12687789]
[1731347853778,6.1921,219.58,219.48,28.12687789]
[1731347854164,6.1921,219.58,219.5,28.12687789]
[1731347854983,6.1921,219.58,219.48,28.12687789]
[1731347855268,6.1921,219.58,219.46,28.12687789]
[1731347855483,6.2921,219.58,219.46,28.12687789]
[1731347855685,0.1,219.56,219.44,28.12687789]
[1731347857690,23.776884,219.57,219.36,34.56987789]
[1731347857691,6.1878,219.47,219.36,28.12687789]
[1731347859486,6.1878,219.47,219.4,28.12687789]
[1731347860271,6.1878,219.47,219.44,28.12687789]
[1731347861073,6.1878,219.47,219.42,28.12687789]
[1731347862274,6.1878,219.47,219.44,28.12687789]
[1731347863179,6.1116,219.54,219.44,28.12687789]
[1731347863379,6.1116,219.54,219.36,28.12687789]
[1731347863380,0.1,219.5,219.35,2.05092097]
[1731347863690,22.6823,219.49,219.35,28.12687789]
[1731347863867,22.6823,219.49,219.37,28.12687789]
[1731347864682,22.6823,219.49,219.39,28.12687789]
[1731347864887,22.6823,219.49,219.41,28.12687789]
[1731347866564,22.6823,219.49,219.29,0.1]
[1731347866767,22.6823,219.49,219.37,28.12687789]
[1731347867574,22.6823,219.49,219.39,28.12687789]
[1731347867876,22.6823,219.49,219.41,28.12687789]
[1731347868767,22.6823,219.49,219.39,28.12687789]
[1731347870272,18.218109,219.48,219.39,28.12687789]
[1731347870976,0.1,219.46,219.32,28.12687789]
[1731347871587,6.231,219.47,219.34,28.12687789]
[1731347873272,6.231,219.47,219.36,28.12687789]
[1731347873672,6.231,219.47,219.28,43.776884]
[1731347873973,6.231,219.47,219.38,28.12687789]
[1731347874187,6.231,219.47,219.36,28.12687789]
[1731347874995,6.231,219.47,219.4,28.12687789]
[1731347877385,6.231,219.47,219.42,28.12687789]
[1731347880290,6.231,219.47,219.43,23.776884]
[1731347880488,6.231,219.47,219.44,28.12687789]
[1731347880875,18.214257,219.51,219.46,28.12687789]
[1731347881076,6.4361,219.52,219.46,28.12687789]
[1731347882480,6.4361,219.52,219.43,23.776884]
[1731347882687,6.4361,219.52,219.48,28.12687789]
[1731347883378,15.8629,219.54,219.48,28.12687789]
[1731347883578,6.2938,219.57,219.5,28.12687789]
[1731347883579,18.209538,219.56,219.5,28.12687789]
[1731347883787,6.2938,219.57,219.52,28.12687789]
[1731347883993,6.2938,219.57,219.51,23.776884]
[1731347885399,6.2938,219.57,219.52,28.12687789]
[1731347886910,6.2938,219.57,219.53,23.776884]
[1731347887193,6.2938,219.57,219.54,28.12687789]
[1731347887600,6.2938,219.57,219.42,20.0]
[1731347887806,6.2938,219.57,219.48,23.776884]
[1731347888602,6.2938,219.57,219.47,28.12687789]
[1731347889505,6.2938,219.57,219.45,28.12687789]
[1731347889705,6.2938,219.57,219.43,28.12687789]
[1731347890083,6.2938,219.57,219.37,16.5273]
[1731347890394,16.1995,219.56,219.4,28.12687789]
[1731347891207,16.1995,219.56,219.44,28.12687789]
[1731347891395,16.1995,219.56,219.46,28.12687789]
[1731347891706,16.1995,219.56,219.47,23.776884]
[1731347895107,16.1995,219.56,219.44,28.12687789]
[1731347895308,16.1995,219.56,219.4,28.12687789]
[1731347895693,16.1995,219.56,219.42,28.12687789]
[1731347897404,16.1995,219.56,219.43,23.776884]
[1731347897609,16.1995,219.56,219.4,28.12687789]
[1731347897907,6.438,219.52,219.34,28.12687789]
[1731347898628,6.438,219.52,219.36,28.12687789]
[1731347899416,6.438,219.52,219.37,23.776884]
[1731347902190,16.3603,219.47,219.34,28.12687789]
[1731347903620,16.3603,219.47,219.32,28.12687789]
[1731347903789,16.3603,219.47,219.33,23.776884]
[1731347905011,16.3603,219.47,219.34,28.12687789]
[1731347905399,16.3603,219.47,219.24,28.22687789]
[1731347905400,6.1866,219.2,218.96,0.1]
[1731347905598,23.776884,219.19,219.03,28.12687789]
[1731347905897,23.776884,219.19,218.98,0.1]
[1731347905898,23.776884,219.19,219.07,28.12687789]
[1731347906103,6.1866,219.2,219.07,28.12687789]
[1731347906104,23.776884,219.17,219.07,28.12687789]
[1731347906309,23.776884,219.17,219.02,28.12687789]
[1731347906622,23.776884,219.19,219.02,28.12687789]
[1731347907407,23.776884,219.19,219.06,28.12687789]
[1731347908609,23.776884,219.19,219.08,28.12687789]
[1731347908816,23.776884,219.17,219.08,28.12687789]
[1731347909007,23.776884,219.17,219.06,28.12687789]
[1731347911027,23.776884,219.17,219.08,28.12687789]
[1731347913617,23.776884,219.17,219.1,28.12687789]
[1731347913824,18.244141,219.18,219.12,28.12687789]
[1731347915417,18.244141,219.18,219.11,28.12687789]
[1731347915718,18.244141,219.18,219.12,28.12687789]
[1731347916023,18.244141,219.18,219.11,28.12687789]
[1731347916315,23.776884,219.17,219.09,28.12687789]
[1731347916617,23.776884,219.17,219.1,28.12687789]
[1731347917199,23.776884,219.17,219.11,28.12687789]
[1731347917519,23.776884,219.17,219.1,28.12687789]
[1731347918817,23.776884,219.17,219.11,28.12687789]
[1731347919205,23.776884,219.17,219.1,28.12687789]
[1731347919406,23.776884,219.17,219.11,28.12687789]
[1731347919608,18.244141,219.18,219.12,28.12687789]
[1731347920111,18.244141,219.18,219.11,28.12687789]
[1731347920621,23.776884,219.17,219.08,28.12687789]
[1731347920829,23.776884,219.17,219.11,28.12687789]
[1731347922907,23.776884,219.17,219.12,28.12687789]
[1731347923105,23.776884,219.17,219.11,28.12687789]
[1731347924420,23.776884,219.17,219.13,28.12687789]
[1731347924612,23.776884,219.17,219.12,28.12687789]
[1731347925028,23.776884,219.17,219.11,28.12687789]
[1731347925201,23.776884,219.19,219.11,28.12687789]
[1731347925405,23.776884,219.19,219.03,0.1]
[1731347925406,23.776884,219.19,219.12,28.12687789]
[1731347926523,23.776884,219.19,219.0,23.776884]
[1731347926735,23.776884,219.18,219.03,28.12687789]
[1731347926901,23.776884,219.18,219.06,28.12687789]
[1731347927104,23.776884,219.18,219.1,28.12687789]
[1731347927429,23.776884,219.18,219.12,28.12687789]
[1731347927605,23.776884,219.18,219.0,28.22687789]
[1731347927606,23.776884,219.18,219.08,28.12687789]
[1731347929128,23.776884,219.18,219.1,28.12687789]
[1731347930228,23.776884,219.18,219.11,28.12687789]
[1731347930403,6.1137,219.19,219.13,28.12687789]
[1731347930608,0.1,219.17,218.97,2.00179809]
[1731347930805,6.1137,219.19,219.11,28.12687789]
[1731347931338,6.1137,219.19,219.09,28.12687789]
[1731347931709,23.776884,219.18,219.09,28.12687789]
[1731347934418,23.776884,219.18,219.13,28.12687789]
[1731347934625,23.776884,219.18,219.09,28.12687789]
[1731347934814,23.776884,219.18,219.11,28.12687789]
[1731347935124,23.776884,219.18,219.13,28.12687789]
[1731347936014,6.1137,219.19,219.13,28.12687789]
[1731347936811,6.1137,219.19,219.1,28.12687789]
[1731347937130,23.776884,219.18,219.1,28.12687789]
[1731347942925,23.776884,219.18,219.08,28.12687789]
[1731347943229,23.776884,219.18,219.05,28.12687789]
[1731347944133,23.776884,219.16,219.02,28.12687789]
[1731347945930,23.776884,219.16,219.06,28.12687789]
[1731347946740,23.776884,219.16,218.97,0.2]
[1731347946918,23.776884,219.14,218.91,0.1]
[1731347947233,23.776884,219.14,219.0,28.12687789]
[1731347947816,23.776884,219.14,218.99,28.12687789]
[1731347948017,23.776884,219.14,219.0,28.12687789]
[1731347948318,23.776884,219.14,219.01,28.12687789]
[1731347948733,23.776884,219.14,219.0,28.12687789]
[1731347949033,23.776884,219.14,219.02,28.12687789]
[1731347949233,23.776884,219.14,219.04,28.12687789]
[1731347949421,23.776884,219.14,219.05,28.12687789]
[1731347949942,23.776884,219.14,219.04,28.12687789]
[1731347950115,23.776884,219.14,219.05,28.12687789]
[1731347951029,23.776884,219.14,219.03,28.12687789]
[1731347951920,23.776884,219.14,219.02,28.12687789]
[1731347952116,23.776884,219.14,219.03,28.12687789]
[1731347953925,23.776884,219.14,219.05,28.12687789]
[1731347955421,23.776884,219.14,219.07,28.12687789]
[1731347955840,21.3623,219.15,219.07,28.12687789]
[1731347956026,21.3623,219.15,219.05,28.12687789]
[1731347956931,21.3623,219.15,219.03,28.12687789]
[1731347957134,23.776884,219.14,219.03,28.12687789]
[1731347959429,23.776884,219.14,218.91,0.1]
[1731347959430,23.776884,219.14,219.02,28.12687789]
[1731347959829,0.1,219.13,219.01,28.12687789]
[1731347960051,23.776884,219.12,219.01,28.12687789]
[1731347961530,23.776884,219.12,219.02,28.12687789]
[1731347961728,23.776884,219.11,219.01,28.12687789]
[1731347962250,29.77277715,219.1,219.01,28.12687789]
[1731347962925,29.77277715,219.1,218.9,2.08949135]
[1731347962926,23.776884,219.08,218.99,28.12687789]
[1731347963145,23.776884,219.06,218.98,28.12687789]
[1731347963340,6.42922648,219.05,218.98,28.12687789]
[1731347963849,23.776884,219.04,218.98,28.12687789]
[1731347964345,23.776884,219.04,218.9,0.1]
[1731347964346,23.776884,219.04,219.01,28.12687789]
[1731347964529,23.776884,219.04,219.02,28.12687789]
[1731347964945,23.776884,219.04,219.01,28.12687789]
[1731347966231,23.776884,219.04,219.03,28.12687789]
[1731347966433,28.95382648,219.09,219.03,28.12687789]
[1731347966827,28.95382648,219.09,219.03,27.88542682]
[1731347967952,23.776884,219.08,219.03,27.88542682]
[1731347968361,23.776884,219.08,219.01,28.12687789]
[1731347968530,23.776884,219.08,219.05,28.12687789]
[1731347968736,23.776884,219.08,219.07,28.12687789]
[1731347970047,3.41273229,219.08,219.07,28.12687789]
[1731347970656,3.41273229,219.08,218.94,0.1]
[1731347970839,22.5246,219.09,219.06,28.12687789]
[1731347970840,3.41273229,219.07,219.06,28.12687789]
[1731347971241,3.41273229,219.07,218.96,0.1]
[1731347971438,22.5246,219.09,219.06,28.12687789]
[1731347971653,22.5246,219.09,219.08,28.12687789]
[1731347971956,25.93753483,219.09,219.08,28.12687789]
[1731347973141,25.93754696,219.09,219.08,28.12687789]
[1731347973844,3.41294696,219.09,219.08,28.12687789]
[1731347975054,23.776884,219.13,219.08,28.12687789]
[1731347975241,23.776884,219.13,219.1,28.12687789]
[1731347975857,23.776884,219.13,218.97,15.5784]
[1731347976056,23.776884,219.13,219.08,28.12687789]
[1731347978058,23.776884,219.13,219.1,28.12687789]
[1731347978361,16.6548,219.14,219.12,28.12687789]
[1731347978662,16.6548,219.14,219.1,28.12687789]
[1731347979645,16.6548,219.14,219.12,28.12687789]
[1731347981943,16.6548,219.14,219.1,28.12687789]
[1731347982947,16.6548,219.14,219.08,28.12687789]
[1731347985552,16.6548,219.14,219.0,28.12687789]
[1731347985553,23.776884,219.13,219.06,28.12687789]
[1731347985760,23.776884,219.13,219.08,28.12687789]
[1731347987445,16.6548,219.14,219.08,28.12687789]
[1731347991362,16.6548,219.14,218.99,0.2]
[1731347991553,16.6548,219.14,219.08,28.12687789]
[1731347992365,16.6548,219.14,218.99,0.2]
[1731347992539,16.6548,219.14,219.06,28.12687789]
[1731347992745,23.776884,219.13,219.03,28.12687789]
[1731347994364,23.776884,219.13,218.97,0.2]
[1731347994365,23.776884,219.13,219.05,28.12687789]
[1731347996185,16.6548,219.14,219.07,28.12687789]
[1731347997646,23.776884,219.13,219.07,28.12687789]
[1731347997848,23.776884,219.13,219.05,28.12687789]
[1731348000365,23.776884,219.13,219.01,28.12687789]
[1731348000561,23.776884,219.13,218.95,2.06520976]
[1731348000562,23.776884,219.13,219.05,28.12687789]
[1731348000761,23.776884,219.13,219.03,28.12687789]
[1731348001155,23.776884,219.13,218.99,28.12687789]
[1731348001465,23.776884,219.13,219.01,28.12687789]
[1731348001874,23.776884,219.13,219.03,28.12687789]
[1731348002257,23.776884,219.13,219.05,28.12687789]
[1731348002874,23.776884,219.13,219.03,28.12687789]
[1731348003255,23.776884,219.13,218.99,28.12687789]
[1731348003449,23.776884,219.13,219.01,28.12687789]
[1731348003699,23.776884,219.13,219.05,28.12687789]
[1731348003975,16.6548,219.14,219.05,28.12687789]
[1731348004467,16.6548,219.14,218.92,17.85081703]
[1731348004468,16.6548,219.14,219.03,28.12687789]
[1731348005173,23.776884,219.13,219.03,28.12687789]
[1731348005876,16.6548,219.14,219.07,28.12687789]
[1731348006856,16.6548,219.14,219.03,28.12687789]
[1731348007257,23.776884,219.13,219.03,28.12687789]
[1731348007456,23.776884,219.13,219.01,28.12687789]
[1731348009970,23.776884,219.13,218.99,28.12687789]
[1731348011383,23.776884,219.13,219.01,28.12687789]
[1731348011768,16.6548,219.14,218.89,6.6457]
[1731348011769,22.4829,219.1,219.0,28.12687789]
[1731348011966,23.776884,219.09,219.0,28.12687789]
[1731348012170,23.776884,219.09,219.02,28.12687789]
[1731348017488,23.776884,219.09,219.04,28.12687789]
[1731348017779,23.776884,219.09,219.06,28.12687789]
[1731348017985,15.0215,219.15,219.07,28.12687789]
[1731348018172,15.0215,219.15,219.11,28.12687789]
[1731348018782,15.0215,219.15,218.98,0.1]
[1731348018988,15.0215,219.15,219.07,28.12687789]
[1731348019465,23.776884,219.14,219.07,28.12687789]
[1731348021783,23.776884,219.14,219.05,28.12687789]
[1731348024172,23.776884,219.14,219.07,28.12687789]
[1731348025690,23.776884,219.14,219.03,28.12687789]
[1731348026072,23.776884,219.14,219.05,28.12687789]
[1731348027096,23.776884,219.14,219.03,28.12687789]
[1731348028293,23.776884,219.14,219.05,28.12687789]
[1731348029666,23.776884,219.14,219.07,28.12687789]
[1731348030182,15.0215,219.15,219.09,28.12687789]
[1731348031491,15.0215,219.15,219.01,16.5423]
[1731348031492,15.0215,219.15,219.07,28.12687789]
[1731348031670,23.776884,219.14,219.05,28.12687789]
[1731348032693,23.776884,219.14,219.03,28.12687789]
[1731348032896,23.776884,219.14,219.05,28.12687789]
[1731348033077,23.776884,219.14,219.07,28.12687789]
[1731348033273,15.0215,219.15,219.09,28.12687789]
[1731348033474,15.0215,219.15,219.01,0.1]
[1731348033770,15.0215,219.15,219.11,28.12687789]
[1731348034367,15.0215,219.15,219.09,28.12687789]
[1731348034767,15.0215,219.15,219.0,28.22687789]
[1731348034768,15.0215,219.15,219.07,28.12687789]
[1731348035783,23.776884,219.14,219.07,28.12687789]
[1731348036167,15.0215,219.15,219.07,28.12687789]
[1731348036394,15.0215,219.15,218.97,0.1]
[1731348036395,15.0215,219.15,219.05,28.12687789]
[1731348038080,15.0215,219.15,219.07,28.12687789]
[1731348038475,15.0215,219.15,219.09,28.12687789]
[1731348039491,15.0215,219.15,219.07,28.12687789]
[1731348039797,15.0215,219.15,219.01,23.776884]
[1731348039988,0.79163515,219.0,218.97,28.12687789]
[1731348040187,0.79163515,219.0,218.99,28.12687789]
[1731348040492,0.79163515,219.0,218.99,56.25375578]
[1731348041216,15.0215,219.15,219.09,28.12687789]
[1731348041376,15.0215,219.15,219.07,28.12687789]
[1731348041980,15.0215,219.15,219.09,28.12687789]
[1731348042599,15.0215,219.15,219.07,28.12687789]
[1731348044100,15.0215,219.15,219.05,28.12687789]
[1731348044304,23.776884,219.14,219.01,28.12687789]
[1731348045097,15.0215,219.15,219.05,28.12687789]
[1731348046203,15.0215,219.15,219.07,28.12687789]
[1731348049298,15.0215,219.15,219.09,28.12687789]
[1731348050291,15.0215,219.15,219.07,28.12687789]
[1731348052297,15.0215,219.15,219.01,23.776884]
[1731348052508,15.0215,219.15,219.05,28.12687789]
[1731348053796,15.0215,219.15,219.03,28.12687789]
[1731348054416,23.776884,219.14,219.01,28.12687789]
[1731348054793,23.776884,219.14,218.99,28.12687789]
[1731348054997,16.1632,219.11,218.97,28.12687789]
[1731348055500,16.1632,219.11,218.99,28.12687789]
[1731348056009,23.776884,219.1,218.95,10.98424887]
[1731348056191,30.437984,219.1,218.95,39.11112676]
[1731348056393,30.437984,219.1,218.97,28.12687789]
[1731348059599,23.776884,219.06,218.93,28.12687789]
[1731348059902,23.776884,219.03,218.91,28.12687789]
[1731348060100,23.776884,219.0,218.76,15.3285]
[1731348060304,4.1077,219.1,218.65,55.5]
[1731348060305,22.7978,218.96,218.82,28.12687789]
[1731348060506,0.1,218.97,218.78,28.12687789]
[1731348060507,22.7978,218.93,218.78,28.12687789]